[Event "Titled Tuesday Blitz January 31 Early 2023"]
[White "Avila Pavas, Santiago"]
[Black "Bruzon Batista, Lazaro"]
[WhiteFideId "4437128"]
[BlackFideId "3503739"]
[WhiteElo "2522"]
[BlackElo "2611"]
[Result "0-1"]
[Round "07"]
[TimeControl "180+2"]
[Date "2023.01.31"]
[WhiteClock "0:00:01"]
[BlackClock "0:00:13"]

1. d4 {[%clk 0:03:00]}  Nf6 {[%clk 0:02:59]} 2. Nf3 {[%clk 0:03:00]}  e6 {[%clk 0:02:59]} 3. Bf4 {[%clk 0:03:00]}  b6 {[%clk 0:02:58]} 4. e3 {[%clk 0:03:01]}  Bb7 {[%clk 0:02:58]} 5. Nbd2 {[%clk 0:03:02]}  d6 {[%clk 0:02:58]} 6. Bd3 {[%clk 0:03:02]}  Nbd7 {[%clk 0:02:57]} 7. Qe2 {[%clk 0:03:02]}  a6 {[%clk 0:02:57]} 8. O-O-O {[%clk 0:03:02]}  Qe7 {[%clk 0:02:54]} 9. e4 {[%clk 0:03:02]}  e5 {[%clk 0:02:53]} 10. Bg3 {[%clk 0:02:55]}  g6 {[%clk 0:02:51]} 11. dxe5 {[%clk 0:02:31]}  Nxe5 {[%clk 0:02:46]} 12. Nxe5 {[%clk 0:02:21]}  dxe5 {[%clk 0:02:46]} 13. f4 {[%clk 0:02:20]}  Bh6 {[%clk 0:02:44]} 14. fxe5 {[%clk 0:02:19]}  Nh5 {[%clk 0:02:43]} 15. Bc4 {[%clk 0:02:04]}  O-O-O {[%clk 0:02:11]} 16. Bxa6 {[%clk 0:01:47]}  Bxa6 {[%clk 0:02:06]} 17. Qxa6+ {[%clk 0:01:46]}  Kb8 {[%clk 0:02:06]} 18. Qe2 {[%clk 0:01:37]}  Nxg3 {[%clk 0:01:01]} 19. hxg3 {[%clk 0:01:36]}  Bxd2+ {[%clk 0:01:01]} 20. Rxd2 {[%clk 0:01:37]}  Qxe5 {[%clk 0:01:02]} 21. Rxh7 {[%clk 0:01:03]}  Qxg3 {[%clk 0:00:51]} 22. Rxh8 {[%clk 0:00:45]}  Rxh8 {[%clk 0:00:49]} 23. b3 {[%clk 0:00:43]}  Qe5 {[%clk 0:00:41]} 24. Kb1 {[%clk 0:00:43]}  Rh1+ {[%clk 0:00:40]} 25. Rd1 {[%clk 0:00:43]}  Rxd1+ {[%clk 0:00:40]} 26. Qxd1 {[%clk 0:00:44]}  Qxe4 {[%clk 0:00:40]} 27. Qf3 {[%clk 0:00:44]}  Qe1+ {[%clk 0:00:33]} 28. Kb2 {[%clk 0:00:44]}  f5 {[%clk 0:00:33]} 29. Qc6 {[%clk 0:00:42]}  Qe5+ {[%clk 0:00:32]} 30. c3 {[%clk 0:00:41]}  g5 {[%clk 0:00:32]} 31. a4 {[%clk 0:00:41]}  g4 {[%clk 0:00:32]} 32. b4 {[%clk 0:00:41]}  f4 {[%clk 0:00:32]} 33. Kb3 {[%clk 0:00:31]}  Qf5 {[%clk 0:00:29]} 34. c4 {[%clk 0:00:08]}  f3 {[%clk 0:00:23]} 35. c5 {[%clk 0:00:03]}  Qd3+ {[%clk 0:00:18]} 36. Kb2 {[%clk 0:00:03]}  bxc5 {[%clk 0:00:16]} 37. gxf3 {[%clk 0:00:01]}  Qd4+ {[%clk 0:00:13]} 0-1


[Site "https://www.chess.com"]

[Event "Titled Tuesday Blitz January 31 Early 2023"]
[White "Bacrot, Etienne"]
[Black "Predke, Alexandr"]
[WhiteFideId "605506"]
[BlackFideId "24107581"]
[WhiteElo "2667"]
[BlackElo "2685"]
[Result "1-0"]
[Round "07"]
[TimeControl "180+2"]
[Date "2023.01.31"]
[WhiteClock "0:00:12"]
[BlackClock "0:00:01"]

1. e4 {[%clk 0:03:00]}  c5 {[%clk 0:02:59]} 2. Nf3 {[%clk 0:03:01]}  e6 {[%clk 0:03:00]} 3. c3 {[%clk 0:03:01]}  d5 {[%clk 0:02:59]} 4. exd5 {[%clk 0:03:01]}  Qxd5 {[%clk 0:03:00]} 5. d4 {[%clk 0:03:02]}  Nf6 {[%clk 0:03:00]} 6. Na3 {[%clk 0:03:01]}  a6 {[%clk 0:02:58]} 7. Nc4 {[%clk 0:03:01]}  Nbd7 {[%clk 0:02:57]} 8. Be2 {[%clk 0:02:58]}  cxd4 {[%clk 0:02:57]} 9. Qxd4 {[%clk 0:02:54]}  Bc5 {[%clk 0:02:54]} 10. Qxd5 {[%clk 0:02:51]}  Nxd5 {[%clk 0:02:55]} 11. a4 {[%clk 0:02:45]}  b6 {[%clk 0:02:54]} 12. O-O {[%clk 0:02:42]}  Bb7 {[%clk 0:02:54]} 13. Nfe5 {[%clk 0:02:25]}  Nxe5 {[%clk 0:02:24]} 14. Nxe5 {[%clk 0:02:26]}  f6 {[%clk 0:02:01]} 15. Nd3 {[%clk 0:02:21]}  Bd6 {[%clk 0:01:56]} 16. Re1 {[%clk 0:02:13]}  O-O-O {[%clk 0:01:53]} 17. Bg4 {[%clk 0:02:11]}  f5 {[%clk 0:01:53]} 18. Bf3 {[%clk 0:02:10]}  Nc7 {[%clk 0:01:47]} 19. Bg5 {[%clk 0:01:46]}  Bxh2+ {[%clk 0:01:40]} 20. Kxh2 {[%clk 0:01:43]}  Rxd3 {[%clk 0:01:41]} 21. Be2 {[%clk 0:01:31]}  Rd6 {[%clk 0:01:04]} 22. Bf4 {[%clk 0:01:28]}  e5 {[%clk 0:01:04]} 23. Bxe5 {[%clk 0:01:24]}  Rh6+ {[%clk 0:01:05]} 24. Kg1 {[%clk 0:01:24]}  Rg6 {[%clk 0:01:05]} 25. f3 {[%clk 0:01:10]}  Re8 {[%clk 0:00:55]} 26. Bd3 {[%clk 0:01:07]}  Rf8 {[%clk 0:00:51]} 27. Kf2 {[%clk 0:01:02]}  Ne6 {[%clk 0:00:33]} 28. Rad1 {[%clk 0:00:49]}  Nc5 {[%clk 0:00:25]} 29. Bc2 {[%clk 0:00:48]}  Bc6 {[%clk 0:00:21]} 30. Bd6 {[%clk 0:00:27]}  Rf7 {[%clk 0:00:15]} 31. Bxc5 {[%clk 0:00:24]}  bxc5 {[%clk 0:00:16]} 32. Re5 {[%clk 0:00:25]}  Kc7 {[%clk 0:00:09]} 33. Rxc5 {[%clk 0:00:24]}  Rgf6 {[%clk 0:00:06]} 34. b4 {[%clk 0:00:24]}  Kb7 {[%clk 0:00:03]} 35. a5 {[%clk 0:00:20]}  g6 {[%clk 0:00:03]} 36. Bd3 {[%clk 0:00:20]}  Re7 {[%clk 0:00:02]} 37. Bf1 {[%clk 0:00:18]}  Rfe6 {[%clk 0:00:02]} 38. Rd2 {[%clk 0:00:17]}  Re3 {[%clk 0:00:01]} 39. Bxa6+ {[%clk 0:00:17]}  Kxa6 {[%clk 0:00:01]} 40. Rxc6+ {[%clk 0:00:17]}  Kb5 {[%clk 0:00:02]} 41. Rc5+ {[%clk 0:00:18]}  Ka4 {[%clk 0:00:03]} 42. a6 {[%clk 0:00:18]}  Kb3 {[%clk 0:00:03]} 43. Ra5 {[%clk 0:00:13]}  Re1 {[%clk 0:00:01]} 44. a7 {[%clk 0:00:12]} 1-0


[Site "https://www.chess.com"]

[Event "Titled Tuesday Blitz January 31 Early 2023"]
[White "Postny, Evgeny"]
[Black "Baskakov, Egor"]
[WhiteFideId "2804344"]
[BlackFideId "24197866"]
[WhiteElo "2549"]
[BlackElo "2215"]
[Result "1-0"]
[Round "07"]
[TimeControl "180+2"]
[Date "2023.01.31"]
[WhiteClock "0:00:31"]
[BlackClock "0:00:43"]

1. Nf3 {[%clk 0:03:00]}  Nf6 {[%clk 0:02:59]} 2. c4 {[%clk 0:03:01]}  e6 {[%clk 0:03:00]} 3. g3 {[%clk 0:03:00]}  d5 {[%clk 0:03:00]} 4. Bg2 {[%clk 0:03:01]}  Be7 {[%clk 0:03:01]} 5. O-O {[%clk 0:03:01]}  O-O {[%clk 0:03:01]} 6. d4 {[%clk 0:03:02]}  Ne4 {[%clk 0:03:02]} 7. Nc3 {[%clk 0:02:58]}  f5 {[%clk 0:03:02]} 8. Qc2 {[%clk 0:02:56]}  c6 {[%clk 0:02:59]} 9. b3 {[%clk 0:02:52]}  Bd7 {[%clk 0:02:59]} 10. e3 {[%clk 0:02:52]}  Be8 {[%clk 0:02:59]} 11. Ne2 {[%clk 0:02:51]}  Nd7 {[%clk 0:02:58]} 12. Nf4 {[%clk 0:02:50]}  Rf6 {[%clk 0:02:56]} 13. Bb2 {[%clk 0:02:31]}  g5 {[%clk 0:02:55]} 14. Nd3 {[%clk 0:02:31]}  Rc8 {[%clk 0:02:53]} 15. Nfe5 {[%clk 0:02:27]}  Nxe5 {[%clk 0:02:51]} 16. Nxe5 {[%clk 0:02:19]}  Nd6 {[%clk 0:02:32]} 17. Rac1 {[%clk 0:02:15]}  Nf7 {[%clk 0:02:28]} 18. cxd5 {[%clk 0:02:10]}  exd5 {[%clk 0:02:28]} 19. f4 {[%clk 0:02:06]}  g4 {[%clk 0:02:15]} 20. h3 {[%clk 0:01:55]}  h5 {[%clk 0:02:04]} 21. hxg4 {[%clk 0:01:53]}  hxg4 {[%clk 0:02:05]} 22. Kf2 {[%clk 0:01:53]}  Nxe5 {[%clk 0:01:58]} 23. dxe5 {[%clk 0:01:49]}  Rf8 {[%clk 0:01:58]} 24. Rh1 {[%clk 0:01:43]}  Kg7 {[%clk 0:01:49]} 25. e6+ {[%clk 0:01:24]}  Bf6 {[%clk 0:01:23]} 26. Qxf5 {[%clk 0:01:23]}  Bg6 {[%clk 0:01:22]} 27. Bxf6+ {[%clk 0:01:15]}  Qxf6 {[%clk 0:01:23]} 28. Qxg4 {[%clk 0:01:08]}  Qb2+ {[%clk 0:01:11]} 29. Qe2 {[%clk 0:01:07]}  Qf6 {[%clk 0:01:10]} 30. e7 {[%clk 0:00:54]}  Qxe7 {[%clk 0:01:06]} 31. Qb2+ {[%clk 0:00:53]}  Rf6 {[%clk 0:00:59]} 32. g4 {[%clk 0:00:43]}  Kf7 {[%clk 0:00:57]} 33. Bxd5+ {[%clk 0:00:36]}  cxd5 {[%clk 0:00:47]} 34. Rxc8 {[%clk 0:00:35]}  Qd7 {[%clk 0:00:44]} 35. Rf8+ {[%clk 0:00:30]}  Kxf8 {[%clk 0:00:43]} 36. Qxf6+ {[%clk 0:00:31]} 1-0


[Site "https://www.chess.com"]

[Event "Titled Tuesday Blitz January 31 Early 2023"]
[White "Pakleza, Zbigniew"]
[Black "Lymar, Vladislav"]
[WhiteFideId "1119290"]
[BlackFideId "14162180"]
[WhiteElo "2494"]
[BlackElo "2119"]
[Result "1-0"]
[Round "07"]
[TimeControl "180+2"]
[Date "2023.01.31"]
[WhiteClock "0:00:03"]
[BlackClock "0:00:01"]

1. d4 {[%clk 0:03:00]}  d5 {[%clk 0:02:59]} 2. Bf4 {[%clk 0:03:00]}  c5 {[%clk 0:02:58]} 3. e3 {[%clk 0:03:01]}  Nc6 {[%clk 0:02:58]} 4. c3 {[%clk 0:03:01]}  Nf6 {[%clk 0:02:58]} 5. Nd2 {[%clk 0:03:01]}  Bf5 {[%clk 0:02:57]} 6. Ngf3 {[%clk 0:02:51]}  Qb6 {[%clk 0:02:56]} 7. Nh4 {[%clk 0:02:49]}  e6 {[%clk 0:02:49]} 8. Nxf5 {[%clk 0:02:44]}  exf5 {[%clk 0:02:49]} 9. Qb3 {[%clk 0:02:44]}  c4 {[%clk 0:02:49]} 10. Qxb6 {[%clk 0:02:40]}  axb6 {[%clk 0:02:50]} 11. a3 {[%clk 0:02:41]}  b5 {[%clk 0:02:49]} 12. Rb1 {[%clk 0:02:36]}  Be7 {[%clk 0:02:44]} 13. Be2 {[%clk 0:02:32]}  O-O {[%clk 0:02:41]} 14. h3 {[%clk 0:02:32]}  Rfe8 {[%clk 0:02:32]} 15. g4 {[%clk 0:02:30]}  fxg4 {[%clk 0:02:30]} 16. hxg4 {[%clk 0:02:31]}  h6 {[%clk 0:02:14]} 17. g5 {[%clk 0:02:05]}  hxg5 {[%clk 0:02:13]} 18. Bxg5 {[%clk 0:02:06]}  Rad8 {[%clk 0:01:49]} 19. Bf3 {[%clk 0:01:52]}  Nh7 {[%clk 0:01:44]} 20. Bf4 {[%clk 0:01:38]}  Ng5 {[%clk 0:01:42]} 21. Bg2 {[%clk 0:01:37]}  Ne6 {[%clk 0:01:38]} 22. Bg3 {[%clk 0:01:35]}  Bd6 {[%clk 0:01:34]} 23. Nf1 {[%clk 0:01:25]}  Bxg3 {[%clk 0:01:33]} 24. Nxg3 {[%clk 0:01:26]}  g6 {[%clk 0:01:33]} 25. Kd2 {[%clk 0:01:20]}  Kg7 {[%clk 0:01:32]} 26. f4 {[%clk 0:01:04]}  Ne7 {[%clk 0:01:29]} 27. Rbf1 {[%clk 0:00:49]}  f5 {[%clk 0:01:15]} 28. Ne2 {[%clk 0:00:41]}  Rh8 {[%clk 0:01:13]} 29. Ng1 {[%clk 0:00:37]}  Rxh1 {[%clk 0:01:12]} 30. Bxh1 {[%clk 0:00:38]}  Rh8 {[%clk 0:01:12]} 31. Nf3 {[%clk 0:00:39]}  Nd8 {[%clk 0:00:56]} 32. Bg2 {[%clk 0:00:33]}  Nf7 {[%clk 0:00:53]} 33. Rh1 {[%clk 0:00:31]}  Rxh1 {[%clk 0:00:52]} 34. Bxh1 {[%clk 0:00:32]}  Kf6 {[%clk 0:00:49]} 35. Kc2 {[%clk 0:00:26]}  Kg7 {[%clk 0:00:29]} 36. b3 {[%clk 0:00:23]}  Kh6 {[%clk 0:00:24]} 37. a4 {[%clk 0:00:18]}  bxa4 {[%clk 0:00:18]} 38. bxa4 {[%clk 0:00:16]}  Kh5 {[%clk 0:00:18]} 39. Ne5 {[%clk 0:00:10]}  Nxe5 {[%clk 0:00:16]} 40. dxe5 {[%clk 0:00:11]}  Kg4 {[%clk 0:00:08]} 41. Kd2 {[%clk 0:00:10]}  g5 {[%clk 0:00:04]} 42. fxg5 {[%clk 0:00:09]}  Kxg5 {[%clk 0:00:05]} 43. Bf3 {[%clk 0:00:07]}  f4 {[%clk 0:00:04]} 44. e4 {[%clk 0:00:07]}  dxe4 {[%clk 0:00:05]} 45. Bxe4 {[%clk 0:00:08]}  b6 {[%clk 0:00:05]} 46. Ke2 {[%clk 0:00:06]}  Kg4 {[%clk 0:00:03]} 47. Kf2 {[%clk 0:00:05]}  Ng8 {[%clk 0:00:03]} 48. Bd5 {[%clk 0:00:05]}  Ne7 {[%clk 0:00:04]} 49. Bxc4 {[%clk 0:00:05]}  Kf5 {[%clk 0:00:04]} 50. e6 {[%clk 0:00:05]}  Ke4 {[%clk 0:00:04]} 51. Be2 {[%clk 0:00:03]}  Ke5 {[%clk 0:00:02]} 52. Bg4 {[%clk 0:00:03]}  Ke4 {[%clk 0:00:02]} 53. Bh3 {[%clk 0:00:03]}  Ke5 {[%clk 0:00:02]} 54. Kf3 {[%clk 0:00:04]}  Nd5 {[%clk 0:00:02]} 55. c4 {[%clk 0:00:04]}  Ne7 {[%clk 0:00:03]} 56. Bg4 {[%clk 0:00:03]}  Kd4 {[%clk 0:00:02]} 57. Kxf4 {[%clk 0:00:03]}  Kxc4 {[%clk 0:00:03]} 58. Ke5 {[%clk 0:00:04]}  Kb4 {[%clk 0:00:03]} 59. Kd6 {[%clk 0:00:03]}  Ng6 {[%clk 0:00:01]} 60. Bd1 {[%clk 0:00:03]} 1-0


[Site "https://www.chess.com"]

[Event "Titled Tuesday Blitz January 31 Early 2023"]
[White "Wieczorek, Oskar"]
[Black "Svane, Rasmus"]
[WhiteFideId "1133950"]
[BlackFideId "4657101"]
[WhiteElo "2512"]
[BlackElo "2623"]
[Result "0-1"]
[Round "07"]
[TimeControl "180+2"]
[Date "2023.01.31"]
[WhiteClock "0:00:03"]
[BlackClock "0:00:11"]

1. e4 {[%clk 0:03:00]}  c6 {[%clk 0:03:00]} 2. d4 {[%clk 0:03:00]}  d5 {[%clk 0:03:00]} 3. Nd2 {[%clk 0:03:01]}  dxe4 {[%clk 0:03:01]} 4. Nxe4 {[%clk 0:03:02]}  Nf6 {[%clk 0:03:01]} 5. Nxf6+ {[%clk 0:03:01]}  exf6 {[%clk 0:03:02]} 6. Be2 {[%clk 0:03:01]}  Bd6 {[%clk 0:03:00]} 7. Bf3 {[%clk 0:02:59]}  O-O {[%clk 0:02:59]} 8. Ne2 {[%clk 0:03:00]}  Qc7 {[%clk 0:02:58]} 9. c4 {[%clk 0:02:59]}  Re8 {[%clk 0:02:56]} 10. c5 {[%clk 0:02:55]}  Bf8 {[%clk 0:02:53]} 11. O-O {[%clk 0:02:54]}  Na6 {[%clk 0:02:43]} 12. a3 {[%clk 0:02:45]}  Qd8 {[%clk 0:02:40]} 13. Nc3 {[%clk 0:02:37]}  Be6 {[%clk 0:02:36]} 14. b4 {[%clk 0:02:31]}  Nc7 {[%clk 0:02:36]} 15. Be3 {[%clk 0:02:16]}  Nd5 {[%clk 0:02:34]} 16. Nxd5 {[%clk 0:02:13]}  Bxd5 {[%clk 0:02:34]} 17. Rb1 {[%clk 0:01:57]}  b5 {[%clk 0:02:14]} 18. cxb6 {[%clk 0:01:41]}  axb6 {[%clk 0:02:13]} 19. Bxd5 {[%clk 0:01:42]}  Qxd5 {[%clk 0:02:13]} 20. Qb3 {[%clk 0:01:43]}  b5 {[%clk 0:01:05]} 21. Rfc1 {[%clk 0:01:39]}  Ra6 {[%clk 0:01:04]} 22. Rc3 {[%clk 0:01:36]}  Rea8 {[%clk 0:01:01]} 23. Qxd5 {[%clk 0:01:06]}  cxd5 {[%clk 0:01:02]} 24. Rbb3 {[%clk 0:01:06]}  Bd6 {[%clk 0:00:59]} 25. g4 {[%clk 0:01:06]}  Kf8 {[%clk 0:00:53]} 26. Kg2 {[%clk 0:01:05]}  Ke7 {[%clk 0:00:53]} 27. h3 {[%clk 0:01:06]}  Kd7 {[%clk 0:00:53]} 28. Kf3 {[%clk 0:01:06]}  g6 {[%clk 0:00:50]} 29. Bf4 {[%clk 0:01:03]}  g5 {[%clk 0:00:29]} 30. Bxd6 {[%clk 0:00:53]}  Kxd6 {[%clk 0:00:30]} 31. Kg2 {[%clk 0:00:50]}  h6 {[%clk 0:00:27]} 32. Kf3 {[%clk 0:00:32]}  R6a7 {[%clk 0:00:24]} 33. Kg2 {[%clk 0:00:31]}  Ra6 {[%clk 0:00:24]} 34. Kf3 {[%clk 0:00:31]}  Kd7 {[%clk 0:00:18]} 35. Kg2 {[%clk 0:00:30]}  Ke6 {[%clk 0:00:18]} 36. Kf3 {[%clk 0:00:29]}  f5 {[%clk 0:00:18]} 37. Re3+ {[%clk 0:00:29]}  Kf6 {[%clk 0:00:17]} 38. gxf5 {[%clk 0:00:30]}  Kxf5 {[%clk 0:00:17]} 39. Re5+ {[%clk 0:00:30]}  Kf6 {[%clk 0:00:18]} 40. Rxd5 {[%clk 0:00:30]}  Rxa3 {[%clk 0:00:18]} 41. Rxa3 {[%clk 0:00:31]}  Rxa3+ {[%clk 0:00:19]} 42. Kg2 {[%clk 0:00:32]}  Rd3 {[%clk 0:00:19]} 43. Rxb5 {[%clk 0:00:29]}  Rxd4 {[%clk 0:00:19]} 44. Rb6+ {[%clk 0:00:30]}  Kg7 {[%clk 0:00:19]} 45. b5 {[%clk 0:00:27]}  Rb4 {[%clk 0:00:20]} 46. Rb8 {[%clk 0:00:27]}  Kg6 {[%clk 0:00:20]} 47. b6 {[%clk 0:00:26]}  Kh5 {[%clk 0:00:13]} 48. Rf8 {[%clk 0:00:20]}  Kg6 {[%clk 0:00:12]} 49. Rb8 {[%clk 0:00:20]}  Kg7 {[%clk 0:00:12]} 50. Kg3 {[%clk 0:00:20]}  f5 {[%clk 0:00:12]} 51. b7 {[%clk 0:00:15]}  Rb3+ {[%clk 0:00:12]} 52. Kg2 {[%clk 0:00:15]}  Kh7 {[%clk 0:00:11]} 53. Kh2 {[%clk 0:00:15]}  Kg7 {[%clk 0:00:12]} 54. Kg2 {[%clk 0:00:16]}  h5 {[%clk 0:00:11]} 55. Kh2 {[%clk 0:00:14]}  h4 {[%clk 0:00:11]} 56. Kg2 {[%clk 0:00:15]}  Rb5 {[%clk 0:00:10]} 57. Kh2 {[%clk 0:00:11]}  Rb4 {[%clk 0:00:10]} 58. Kg2 {[%clk 0:00:12]}  Rb2 {[%clk 0:00:10]} 59. Kg1 {[%clk 0:00:12]}  g4 {[%clk 0:00:10]} 60. hxg4 {[%clk 0:00:13]}  fxg4 {[%clk 0:00:11]} 61. Kg2 {[%clk 0:00:11]}  g3 {[%clk 0:00:11]} 62. Kg1 {[%clk 0:00:02]}  gxf2+ {[%clk 0:00:10]} 63. Kg2 {[%clk 0:00:02]}  h3+ {[%clk 0:00:11]} 64. Kf1 {[%clk 0:00:03]}  h2 {[%clk 0:00:11]} 0-1


[Site "https://www.chess.com"]

[Event "Titled Tuesday Blitz January 31 Early 2023"]
[White "Hasangatin, Ramil"]
[Black "Svane, Frederik"]
[WhiteFideId "4122160"]
[BlackFideId "12923044"]
[WhiteElo "2457"]
[BlackElo "2600"]
[Result "0-1"]
[Round "07"]
[TimeControl "180+2"]
[Date "2023.01.31"]
[WhiteClock "0:00:04"]
[BlackClock "0:00:03"]

1. e4 {[%clk 0:03:00]}  b6 {[%clk 0:02:58]} 2. d4 {[%clk 0:03:00]}  Bb7 {[%clk 0:02:57]} 3. Bd3 {[%clk 0:03:00]}  g6 {[%clk 0:02:53]} 4. Nf3 {[%clk 0:02:56]}  Bg7 {[%clk 0:02:50]} 5. O-O {[%clk 0:02:56]}  d6 {[%clk 0:02:50]} 6. Re1 {[%clk 0:02:55]}  Nd7 {[%clk 0:02:49]} 7. c4 {[%clk 0:02:55]}  e6 {[%clk 0:02:48]} 8. Nc3 {[%clk 0:02:55]}  Ne7 {[%clk 0:02:48]} 9. Be3 {[%clk 0:02:45]}  O-O {[%clk 0:02:48]} 10. Qd2 {[%clk 0:02:44]}  e5 {[%clk 0:02:44]} 11. Bh6 {[%clk 0:02:34]}  Nc6 {[%clk 0:02:21]} 12. Bxg7 {[%clk 0:02:32]}  Kxg7 {[%clk 0:02:22]} 13. d5 {[%clk 0:02:31]}  Ne7 {[%clk 0:02:22]} 14. h4 {[%clk 0:02:23]}  h6 {[%clk 0:02:20]} 15. h5 {[%clk 0:02:20]}  Nf6 {[%clk 0:02:16]} 16. hxg6 {[%clk 0:02:18]}  fxg6 {[%clk 0:02:17]} 17. Nh2 {[%clk 0:02:11]}  Bc8 {[%clk 0:02:11]} 18. b4 {[%clk 0:02:06]}  a5 {[%clk 0:02:08]} 19. a3 {[%clk 0:02:05]}  g5 {[%clk 0:02:05]} 20. Nf1 {[%clk 0:02:00]}  Ng6 {[%clk 0:02:03]} 21. Ne3 {[%clk 0:01:55]}  Nf4 {[%clk 0:01:53]} 22. Bf1 {[%clk 0:01:52]}  h5 {[%clk 0:01:37]} 23. c5 {[%clk 0:01:45]}  h4 {[%clk 0:01:36]} 24. bxa5 {[%clk 0:01:40]}  Rxa5 {[%clk 0:01:35]} 25. cxd6 {[%clk 0:01:39]}  cxd6 {[%clk 0:01:34]} 26. a4 {[%clk 0:01:23]}  Rh8 {[%clk 0:01:26]} 27. Bb5 {[%clk 0:01:10]}  g4 {[%clk 0:01:10]} 28. g3 {[%clk 0:01:02]}  Nh3+ {[%clk 0:00:44]} 29. Kg2 {[%clk 0:01:02]}  Qg8 {[%clk 0:00:44]} 30. Rh1 {[%clk 0:00:47]}  Qh7 {[%clk 0:00:42]} 31. Qc2 {[%clk 0:00:32]}  Ra7 {[%clk 0:00:41]} 32. Nf5+ {[%clk 0:00:27]}  Bxf5 {[%clk 0:00:38]} 33. exf5 {[%clk 0:00:28]}  Qh6 {[%clk 0:00:15]} 34. Qc1 {[%clk 0:00:23]}  Qh5 {[%clk 0:00:10]} 35. Qc2 {[%clk 0:00:21]}  Qg5 {[%clk 0:00:10]} 36. Rad1 {[%clk 0:00:19]}  hxg3 {[%clk 0:00:09]} 37. fxg3 {[%clk 0:00:17]}  Qe3 {[%clk 0:00:09]} 38. Rhf1 {[%clk 0:00:09]}  Nf4+ {[%clk 0:00:04]} 39. gxf4 {[%clk 0:00:09]}  Qh3+ {[%clk 0:00:04]} 40. Kf2 {[%clk 0:00:06]}  Qh2+ {[%clk 0:00:04]} 41. Ke1 {[%clk 0:00:06]}  Qxc2 {[%clk 0:00:04]} 42. Ne2 {[%clk 0:00:05]}  exf4 {[%clk 0:00:03]} 43. Nxf4 {[%clk 0:00:04]}  Qc3+ {[%clk 0:00:03]} 0-1


[Site "https://www.chess.com"]

[Event "Titled Tuesday Blitz January 31 Early 2023"]
[White "Jones, Gawain C B"]
[Black "Agasarov, Benik"]
[WhiteFideId "409561"]
[BlackFideId "13314823"]
[WhiteElo "2618"]
[BlackElo "2235"]
[Result "1/2-1/2"]
[Round "07"]
[TimeControl "180+2"]
[Date "2023.01.31"]
[WhiteClock "0:00:04"]
[BlackClock "0:00:07"]

1. c4 {[%clk 0:03:00]}  e6 {[%clk 0:02:58]} 2. g3 {[%clk 0:02:57]}  d5 {[%clk 0:02:58]} 3. Bg2 {[%clk 0:02:58]}  Nf6 {[%clk 0:02:58]} 4. Nf3 {[%clk 0:02:58]}  Be7 {[%clk 0:02:58]} 5. O-O {[%clk 0:02:58]}  O-O {[%clk 0:02:59]} 6. b3 {[%clk 0:02:59]}  d4 {[%clk 0:02:57]} 7. e3 {[%clk 0:02:58]}  c5 {[%clk 0:02:57]} 8. Ne5 {[%clk 0:02:57]}  Nfd7 {[%clk 0:02:41]} 9. exd4 {[%clk 0:02:49]}  cxd4 {[%clk 0:02:42]} 10. Nd3 {[%clk 0:02:30]}  Nc6 {[%clk 0:02:39]} 11. Ba3 {[%clk 0:02:29]}  e5 {[%clk 0:02:27]} 12. b4 {[%clk 0:02:29]}  a5 {[%clk 0:02:18]} 13. b5 {[%clk 0:02:26]}  Nb4 {[%clk 0:02:17]} 14. Bxb4 {[%clk 0:02:25]}  axb4 {[%clk 0:02:18]} 15. Re1 {[%clk 0:02:24]}  Bd6 {[%clk 0:02:11]} 16. Qb3 {[%clk 0:02:13]}  Qa5 {[%clk 0:02:00]} 17. c5 {[%clk 0:01:56]}  Nxc5 {[%clk 0:01:55]} 18. Nxc5 {[%clk 0:01:55]}  Bxc5 {[%clk 0:01:56]} 19. Rxe5 {[%clk 0:01:55]}  Be6 {[%clk 0:01:35]} 20. Rxe6 {[%clk 0:01:34]}  fxe6 {[%clk 0:01:34]} 21. d3 {[%clk 0:01:27]}  Qxb5 {[%clk 0:01:20]} 22. Nd2 {[%clk 0:01:27]}  Kh8 {[%clk 0:01:06]} 23. Ne4 {[%clk 0:00:56]}  e5 {[%clk 0:00:45]} 24. Qd5 {[%clk 0:00:43]}  b6 {[%clk 0:00:39]} 25. Nd6 {[%clk 0:00:25]}  Qd7 {[%clk 0:00:34]} 26. Nf7+ {[%clk 0:00:25]}  Qxf7 {[%clk 0:00:33]} 27. Qxf7 {[%clk 0:00:25]}  Rxf7 {[%clk 0:00:34]} 28. Bxa8 {[%clk 0:00:26]}  g5 {[%clk 0:00:20]} 29. Re1 {[%clk 0:00:24]}  Bd6 {[%clk 0:00:18]} 30. Bd5 {[%clk 0:00:23]}  Rc7 {[%clk 0:00:18]} 31. Bc4 {[%clk 0:00:23]}  Kg7 {[%clk 0:00:17]} 32. Kg2 {[%clk 0:00:23]}  Kf6 {[%clk 0:00:18]} 33. Kf3 {[%clk 0:00:23]}  Rc5 {[%clk 0:00:15]} 34. Ke4 {[%clk 0:00:21]}  b5 {[%clk 0:00:16]} 35. Bb3 {[%clk 0:00:21]}  Rc3 {[%clk 0:00:16]} 36. Kd5 {[%clk 0:00:19]}  Bb8 {[%clk 0:00:15]} 37. Ke4 {[%clk 0:00:15]}  h5 {[%clk 0:00:13]} 38. Rh1 {[%clk 0:00:12]}  Rc8 {[%clk 0:00:09]} 39. f3 {[%clk 0:00:10]}  Rc3 {[%clk 0:00:08]} 40. h4 {[%clk 0:00:10]}  gxh4 {[%clk 0:00:07]} 41. Rxh4 {[%clk 0:00:10]}  Kg5 {[%clk 0:00:08]} 42. Rh1 {[%clk 0:00:10]}  Rc5 {[%clk 0:00:08]} 43. Bd5 {[%clk 0:00:06]}  Rc2 {[%clk 0:00:07]} 44. Bb3 {[%clk 0:00:05]}  Re2+ {[%clk 0:00:07]} 45. Kd5 {[%clk 0:00:05]}  Re3 {[%clk 0:00:08]} 46. f4+ {[%clk 0:00:03]}  exf4 {[%clk 0:00:08]} 47. gxf4+ {[%clk 0:00:04]}  Bxf4 {[%clk 0:00:09]} 48. Kxd4 {[%clk 0:00:04]}  h4 {[%clk 0:00:08]} 49. Kc5 {[%clk 0:00:04]}  Rxd3 {[%clk 0:00:08]} 50. Kxb4 {[%clk 0:00:03]}  h3 {[%clk 0:00:06]} 51. Kxb5 {[%clk 0:00:03]}  Kh4 {[%clk 0:00:07]} 52. Bc4 {[%clk 0:00:02]}  Rd2 {[%clk 0:00:06]} 53. a4 {[%clk 0:00:03]}  h2 {[%clk 0:00:06]} 54. a5 {[%clk 0:00:03]}  Rb2+ {[%clk 0:00:07]} 55. Kc6 {[%clk 0:00:04]}  Be3 {[%clk 0:00:06]} 56. Bb5 {[%clk 0:00:02]}  Kg3 {[%clk 0:00:07]} 57. a6 {[%clk 0:00:02]}  Rc2+ {[%clk 0:00:06]} 58. Kd7 {[%clk 0:00:01]}  Kg2 {[%clk 0:00:06]} 59. Bc6+ {[%clk 0:00:02]}  Rxc6 {[%clk 0:00:06]} 60. Rxh2+ {[%clk 0:00:02]}  Kxh2 {[%clk 0:00:07]} 61. Kxc6 {[%clk 0:00:03]}  Kg3 {[%clk 0:00:07]} 62. Kb7 {[%clk 0:00:03]}  Kf4 {[%clk 0:00:08]} 63. Kb8 {[%clk 0:00:04]}  Ke5 {[%clk 0:00:08]} 64. a7 {[%clk 0:00:04]}  Bxa7+ {[%clk 0:00:07]} 1/2-1/2


[Site "https://www.chess.com"]